fUST/lending_fUST_20260618
["ID","MTS","AMOUNT","RATE_DAILY","PERIOD"]
[425373067,1781733040000,-500.0,0.00019178,2]
[425373071,1781733040000,-500.0,0.00019178,2]
[425373069,1781733040000,-500.0,0.00019178,2]
[425373068,1781733040000,-504.21,0.00019178,2]
[425373081,1781733040000,-1582.89712768,0.00019391,2]
[425373074,1781733040000,-500.0,0.00019178,2]
[425373085,1781733040000,-2142.88899826,0.00019391,2]
[425373084,1781733040000,-880.95879487,0.00019391,2]
[425373078,1781733040000,-500.0,0.00019178,2]
[425373083,1781733040000,-870.54963325,0.00019391,2]
[425373082,1781733040000,-930.81173431,0.00019391,2]
[425373088,1781733040000,-785.19501815,0.00019391,2]
[425373077,1781733040000,-500.0,0.00019178,2]
[425373080,1781733040000,-1538.48120391,0.00019344,2]
[425373079,1781733040000,-2602.54,0.00019178,2]
[425373075,1781733040000,-500.0,0.00019178,2]
[425373076,1781733040000,-402.44205014,0.00019178,2]
[425373086,1781733040000,-788.47230475,0.00019391,2]
[425373167,1781733041000,-500.0,0.00020273,2]
[425373165,1781733041000,-500.0,0.00020273,2]
[425373161,1781733041000,-500.0,0.0002,2]
[425373162,1781733041000,-2602.54,0.0002,2]
[425373164,1781733041000,-1453.42,0.00020273,2]
[425373159,1781733041000,-500.0,0.0002,2]
[425373160,1781733041000,-500.0,0.0002,2]
[425373157,1781733041000,-711.98,0.0002,2]
[425373154,1781733041000,-500.0,0.0002,2]
[425373153,1781733041000,-504.21,0.0002,2]
[425373158,1781733041000,-500.0,0.0002,2]
[425373163,1781733041000,-500.0,0.00020273,2]
[425373171,1781733041000,-500.0,0.00020273,2]
[425373188,1781733041000,-500.0,0.00020547,2]
[425373170,1781733041000,-500.0,0.00020273,2]
[425373177,1781733041000,-2602.54,0.00020273,2]
[425373169,1781733041000,-504.21,0.00020273,2]
[425373172,1781733041000,-711.98,0.00020273,2]
[425373176,1781733041000,-500.0,0.00020273,2]
[425373178,1781733041000,-1538.48120391,0.00020346,2]
[425373166,1781733041000,-500.0,0.00020273,2]
[425373175,1781733041000,-500.0,0.00020273,2]
[425373173,1781733041000,-500.0,0.00020273,2]
[425373174,1781733041000,-500.0,0.00020273,2]
[425373179,1781733041000,-1000.0,0.000204,2]
[425373191,1781733041000,-500.0,0.00020547,2]
[425373180,1781733041000,-300.0,0.00020411,5]
[425373155,1781733041000,-500.0,0.0002,2]
[425373168,1781733041000,-422.86282603,0.00020273,2]
[425373156,1781733041000,-300.0,0.0002,4]
[425373124,1781733041000,-500.0,0.00019726,2]
[425373149,1781733041000,-500.0,0.0002,2]
[425373182,1781733041000,-1453.42,0.00020547,2]
[425373125,1781733041000,-711.98,0.00019726,2]
[425373123,1781733041000,-500.0,0.00019726,2]
[425373122,1781733041000,-504.21,0.00019726,2]
[425373121,1781733041000,-241.90790177,0.00019726,2]
[425373127,1781733041000,-500.0,0.00019726,2]
[425373126,1781733041000,-500.0,0.00019726,2]
[425373129,1781733041000,-500.0,0.00019726,2]
[425373138,1781733041000,-1057.15055385,0.00019912,2]
[425373128,1781733041000,-500.0,0.00019726,2]
[425373131,1781733041000,-2602.54,0.00019726,2]
[425373134,1781733041000,-1000.0,0.000199,2]
[425373132,1781733041000,-326.8661211,0.00019846,2]
[425373130,1781733041000,-500.0,0.00019726,2]
[425373152,1781733041000,-500.0,0.0002,2]
[425373133,1781733041000,-457.8996078,0.00019846,2]
[425373137,1781733041000,-1044.65955989,0.00019912,2]
[425373136,1781733041000,-1116.97408117,0.00019912,2]
[425373140,1781733041000,-946.16676569,0.00019912,2]
[425373150,1781733041000,-500.0,0.0002,2]
[425373139,1781733041000,-2571.46679792,0.00019912,2]
[425373151,1781733041000,-500.0,0.0002,2]
[425373141,1781733041000,-911.3093175,0.00019912,2]
[425373143,1781733041000,-938.52820266,0.00019912,2]
[425373145,1781733041000,-958.34472419,0.00019912,2]
[425373148,1781733041000,-1453.42,0.0002,2]
[425373142,1781733041000,-942.23402178,0.00019912,2]
[425373144,1781733041000,-1066.73508119,0.00019912,2]
[425373147,1781733041000,-500.0,0.0002,2]
[425373146,1781733041000,-1081.44610228,0.00019912,2]
[425373135,1781733041000,-1899.47655321,0.00019912,2]
[425373184,1781733041000,-500.0,0.00020547,2]
[425373199,1781733041000,-326.8661211,0.00020662,2]
[425373187,1781733041000,-500.0,0.00020547,2]
[425373231,1781733041000,-811.425784,0.00020932,2]
[425373223,1781733041000,-711.98,0.00020821,2]
[425373225,1781733041000,-500.0,0.00020821,2]
[425373229,1781733041000,-160.0,0.00020932,2]
[425373226,1781733041000,-500.0,0.00020821,2]
[425373221,1781733041000,-500.0,0.00020821,2]
[425373219,1781733041000,-500.0,0.00020821,2]
[425373224,1781733041000,-500.0,0.00020821,2]
[425373228,1781733041000,-1000.0,0.000209,2]
[425373227,1781733041000,-2602.54,0.00020821,2]
[425373222,1781733041000,-500.0,0.00020821,2]
[425373181,1781733041000,-500.0,0.00020547,2]
[425373234,1781733041000,-2961.04516432,0.00020941,2]
[425373236,1781733041000,-160.0,0.00020941,2]
[425373233,1781733041000,-237.53636668,0.00020941,2]
[425373237,1781733041000,-1415.54576,0.00020941,2]
[425373235,1781733041000,-6237.163062,0.00020941,2]
[425373238,1781733041000,-2671.09152,0.00020941,2]
[425373241,1781733041000,-208.7067293,0.00021095,2]
[425373239,1781733041000,-160.0,0.00021046,3]
[425373242,1781733041000,-1453.42,0.00021095,2]
[425373240,1781733041000,-1000.0,0.00021093,10]
[425373243,1781733041000,-500.0,0.00021095,2]
[425373245,1781733041000,-245.18279291,0.00021095,2]
[425373244,1781733041000,-214.5349438,0.00021095,2]
[425373246,1781733041000,-500.0,0.00021095,2]
[425373247,1781733041000,-500.0,0.00021095,2]
[425373248,1781733041000,-504.21,0.00021095,2]
[425373250,1781733041000,-500.0,0.00021095,2]
[425373230,1781733041000,-485.712892,0.00020932,2]
[425373220,1781733041000,-504.21,0.00020821,2]
[425373232,1781733041000,-160.0,0.00020941,2]
[425373210,1781733041000,-1063.19420375,0.00020694,2]
[425373183,1781733041000,-500.0,0.00020547,2]
[425373213,1781733041000,-1118.06884489,0.00020694,2]
[425373190,1781733041000,-467.52618287,0.00020547,2]
[425373186,1781733041000,-504.21,0.00020547,2]
[425373189,1781733041000,-711.98,0.00020547,2]
[425373185,1781733041000,-500.0,0.00020547,2]
[425373194,1781733041000,-2602.54,0.00020547,2]
[425373205,1781733041000,-1303.13642804,0.00020694,2]
[425373204,1781733041000,-2216.05597875,0.00020694,2]
[425373193,1781733041000,-500.0,0.00020547,2]
[425373195,1781733041000,-203.539091,0.00020586,2]
[425373196,1781733041000,-457.708004,0.00020661,2]
[425373197,1781733041000,-457.8996078,0.00020662,2]
[425373200,1781733041000,-329.8430861,0.00020665,2]
[425373192,1781733041000,-500.0,0.00020547,2]
[425373202,1781733041000,-326.8661211,0.00020668,2]
[425373198,1781733041000,-326.8661211,0.00020662,2]
[425373218,1781733041000,-500.0,0.00020821,2]
[425373217,1781733041000,-500.0,0.00020821,2]
[425373208,1781733041000,-3000.04459757,0.00020694,2]
[425373216,1781733041000,-1453.42,0.00020821,2]
[425373215,1781733041000,-500.0,0.00020821,2]
[425373207,1781733041000,-1233.34231282,0.00020694,2]
[425373249,1781733041000,-500.0,0.00021095,2]
[425373211,1781733041000,-1094.94956977,0.00020694,2]
[425373209,1781733041000,-1103.86122664,0.00020694,2]
[425373214,1781733041000,-1261.68711933,0.00020694,2]
[425373206,1781733041000,-1218.76948654,0.00020694,2]
[425373203,1781733041000,-457.8996078,0.00020668,2]
[425373212,1781733041000,-1244.52426139,0.00020694,2]
[425373201,1781733041000,-457.8996078,0.00020665,2]
[425373261,1781733042000,-500.0,0.00021369,2]
[425373259,1781733042000,-1538.48120391,0.00021348,2]
[425373260,1781733042000,-1453.42,0.00021369,2]
[425373257,1781733042000,-210.0,0.00021304,3]
[425373254,1781733042000,-500.0,0.00021095,2]
[425373267,1781733042000,-711.98,0.00021369,2]
[425373252,1781733042000,-500.0,0.00021095,2]
[425373251,1781733042000,-711.98,0.00021095,2]
[425373253,1781733042000,-500.0,0.00021095,2]
[425373255,1781733042000,-2602.54,0.00021095,2]
[425373258,1781733042000,-190.0,0.00021304,3]
[425373269,1781733042000,-500.0,0.00021369,2]
[425373262,1781733042000,-500.0,0.00021369,2]
[425373265,1781733042000,-500.0,0.00021369,2]
[425373264,1781733042000,-504.21,0.00021369,2]
[425373263,1781733042000,-553.70509796,0.00021369,2]
[425373266,1781733042000,-500.0,0.00021369,2]
[425373270,1781733042000,-500.0,0.00021369,2]
[425373273,1781733042000,-223.1478677,0.00021403,2]
[425373271,1781733042000,-2602.54,0.00021369,2]
[425373274,1781733042000,-227945.02079215,0.00021429,2]
[425373275,1781733042000,-5230.47318742,0.00021429,2]
[425373279,1781733042000,-3214.65,0.00021429,2]
[425373256,1781733042000,-333.7,0.00021233,7]
[425373268,1781733042000,-500.0,0.00021369,2]
[425373272,1781733042000,-1000.0,0.000214,2]
[425373293,1781733043000,-1930.04165381,0.00021429,2]
[425373345,1781733046000,-127590.87946546,0.00021429,2]
[425373367,1781733046000,-25047.62410058,0.00021429,2]
[425373342,1781733046000,-4590.01242646,0.00021429,2]
[425373534,1781733101000,1478.45495791,0.00023129,120]
[425373536,1781733159000,947.43445237,0.00023129,120]
[425373535,1781733159000,301.12,0.00024633,120]
[425373538,1781733472000,15775.82229004,0.000168,30]
[425373607,1781734232000,-1302.37594894,0.0001516,2]
[425373623,1781734232000,-1735.79519863,0.0001516,2]
[425373627,1781734232000,-300.0,0.00015554,2]
[425373629,1781734232000,-1418.0,0.00015555,2]
[425373616,1781734232000,-362.5837337,0.0001516,2]
[425373634,1781734232000,-160.0,0.00016023,2]
[425373633,1781734232000,-160.0,0.00016023,2]
[425373631,1781734232000,-958.0,0.00015555,2]
[425373638,1781734232000,-1043.50674197,0.00016338,2]
[425373636,1781734232000,-160.0,0.00016023,2]
[425373625,1781734232000,-3064.9346386,0.00015313,2]
[425373713,1781734233000,-500.0,0.00016986,2]
[425373711,1781734233000,-395.23371556,0.00016986,2]
[425373709,1781734233000,-500.0,0.00016986,2]
[425373706,1781734233000,-500.0,0.00016986,2]
[425373704,1781734233000,-7273.97896601,0.00016886,2]
[425373695,1781734233000,-500.0,0.00016712,2]
[425373693,1781734233000,-500.0,0.00016712,2]
[425373697,1781734233000,-411.56402771,0.00016712,2]
[425373692,1781734233000,-500.0,0.00016712,2]
[425373715,1781734233000,-2549.22,0.00016986,2]
[425373702,1781734233000,-720.21,0.00016712,2]
[425373723,1781734233000,-500.0,0.00016986,2]
[425373732,1781734233000,-500.0,0.0001726,2]
[425373719,1781734233000,-500.0,0.00016986,2]
[425373717,1781734233000,-500.0,0.00016986,2]
[425373725,1781734233000,-500.0,0.00016986,2]
[425373729,1781734233000,-720.21,0.00016986,2]
[425373727,1781734233000,-500.0,0.00016986,2]
[425373731,1781734233000,-500.0,0.0001726,2]
[425373690,1781734233000,-500.0,0.00016712,2]
[425373734,1781734233000,-2549.22,0.0001726,2]
[425373736,1781734233000,-500.0,0.0001726,2]
[425373742,1781734233000,-500.0,0.0001726,2]
[425373738,1781734233000,-500.0,0.0001726,2]
[425373750,1781734233000,-158.04281416,0.00017372,2]
[425373721,1781734233000,-500.0,0.00016986,2]
[425373699,1781734233000,-500.0,0.00016712,2]
[425373679,1781734233000,-500.0,0.00016712,2]
[425373688,1781734233000,-500.0,0.00016712,2]
[425373640,1781734233000,-500.0,0.00016438,2]
[425373642,1781734233000,-500.0,0.00016438,2]
[425373645,1781734233000,-500.0,0.00016438,2]
[425373649,1781734233000,-500.0,0.00016438,2]
[425373644,1781734233000,-500.0,0.00016438,2]
[425373647,1781734233000,-500.0,0.00016438,2]
[425373653,1781734233000,-2549.22,0.00016438,2]
[425373651,1781734233000,-500.0,0.00016438,2]
[425373655,1781734233000,-500.0,0.00016438,2]
[425373657,1781734233000,-500.0,0.00016438,2]
[425373658,1781734233000,-500.0,0.00016438,2]
[425373660,1781734233000,-500.0,0.00016438,2]
[425373701,1781734233000,-342.74438757,0.00016712,2]
[425373662,1781734233000,-500.0,0.00016438,2]
[425373667,1781734233000,-500.0,0.00016438,2]
[425373664,1781734233000,-195.92068368,0.00016438,2]
[425373669,1781734233000,-500.0,0.00016438,2]
[425373672,1781734233000,-720.21,0.00016438,2]
[425373673,1781734233000,-500.0,0.00016712,2]
[425373675,1781734233000,-500.0,0.00016712,2]
[425373748,1781734233000,-1043.5067419,0.00017292,2]
[425373677,1781734233000,-458.84015911,0.00016712,2]
[425373683,1781734233000,-459.72653694,0.00016712,2]
[425373686,1781734233000,-2549.22,0.00016712,2]
[425373681,1781734233000,-500.0,0.00016712,2]
[425373684,1781734233000,-500.0,0.00016712,2]
[425373666,1781734233000,-500.0,0.00016438,2]
[425373740,1781734233000,-500.0,0.0001726,2]
[425373707,1781734233000,-500.0,0.00016986,2]
[425373745,1781734233000,-500.0,0.0001726,2]
[425373786,1781734233000,-320.20608262,0.00018082,2]
[425373782,1781734233000,-2549.22,0.00018082,2]
[425373789,1781734233000,-316.08562833,0.00018152,2]
[425373790,1781734233000,-356.68748637,0.00018152,2]
[425373792,1781734233000,-312.06903851,0.00018152,2]
[425373788,1781734233000,-300.57219595,0.00018138,2]
[425373791,1781734233000,-309.5496528,0.00018152,2]
[425373793,1781734233000,-326.94020673,0.00018176,2]
[425373794,1781734233000,-353.19442263,0.00018176,2]
[425373795,1781734233000,-22.95641156,0.00018176,2]
[425373797,1781734233000,-1249.32706527,0.000182,2]
[425373796,1781734233000,-419.64757063,0.00018176,2]
[425373787,1781734233000,-720.21,0.00018082,2]
[425373798,1781734233000,-1043.5067419,0.00018246,2]
[425373800,1781734233000,-500.0,0.00018356,2]
[425373802,1781734233000,-215.05571008,0.00018356,2]
[425373806,1781734233000,-1249.32706527,0.000184,2]
[425373803,1781734233000,-521.26132685,0.00018356,2]
[425373805,1781734233000,-720.21,0.00018356,2]
[425373801,1781734233000,-2334.16428992,0.00018356,2]
[425373808,1781734233000,-1270.16011913,0.00018555,2]
[425373804,1781734233000,-500.0,0.00018356,2]
[425373807,1781734233000,-1249.32706527,0.000185,2]
[425373810,1781734233000,-958.0,0.00018555,2]
[425373811,1781734233000,-8.6786421,0.000186,2]
[425373743,1781734233000,-394.32833052,0.0001726,2]
[425373799,1781734233000,-360.35433228,0.00018346,2]
[425373784,1781734233000,-369.52480608,0.00018082,2]
[425373783,1781734233000,-500.0,0.00018082,2]
[425373781,1781734233000,-500.0,0.00018082,2]
[425373747,1781734233000,-720.21,0.0001726,2]
[425373752,1781734233000,-178.34374318,0.00017372,2]
[425373754,1781734233000,-154.7748264,0.00017372,2]
[425373756,1781734233000,-156.03451925,0.00017372,2]
[425373757,1781734233000,-163.47010337,0.00017394,2]
[425373759,1781734233000,-176.59721132,0.00017394,2]
[425373761,1781734233000,-221.30199109,0.00017394,2]
[425373762,1781734233000,-163.16,0.00017534,2]
[425373765,1781734233000,-1260.44533697,0.00017534,2]
[425373764,1781734233000,-1288.77466303,0.00017534,2]
[425373763,1781734233000,-500.0,0.00017534,2]
[425373785,1781734233000,-179.79391738,0.00018082,2]
[425373767,1781734233000,-500.0,0.00017534,2]
[425373769,1781734233000,-500.0,0.00017534,2]
[425373766,1781734233000,-500.0,0.00017534,2]
[425373770,1781734233000,-500.0,0.00017534,2]
[425373780,1781734233000,-1249.32706527,0.00018,2]
[425373778,1781734233000,-185.88178204,0.00017808,2]
[425373768,1781734233000,-500.0,0.00017534,2]
[425373777,1781734233000,-500.0,0.00017808,2]
[425373776,1781734233000,-500.0,0.00017808,2]
[425373779,1781734233000,-720.21,0.00017808,2]
[425373809,1781734233000,-147.83988087,0.00018555,2]
[425373774,1781734233000,-356.98695025,0.00017808,2]
[425373772,1781734233000,-500.0,0.00017808,2]
[425373773,1781734233000,-2549.22,0.00017808,2]
[425373771,1781734233000,-720.21,0.00017534,2]
[425373775,1781734233000,-500.0,0.00017808,2]
[425373984,1781734240000,-450.85829393,0.00018658,2]
[425373977,1781734240000,-500.0,0.0001863,2]
[425373976,1781734240000,-788.3213579,0.000186,2]
[425373978,1781734240000,-2549.22,0.0001863,2]
[425373979,1781734240000,-500.0,0.0001863,2]
[425373980,1781734240000,-261.4055627,0.0001863,2]
[425373982,1781734240000,-458.8044373,0.0001863,2]
[425374001,1781734240000,-472.2681741,0.00018697,2]
[425373988,1781734240000,-409.05261366,0.00018673,2]
[425373990,1781734240000,-401.70481081,0.00018673,2]
[425373992,1781734240000,-133.32641874,0.00018673,2]
[425373997,1781734240000,-222.58192409,0.00018697,2]
[425373995,1781734240000,-468.10355776,0.00018673,2]
[425373993,1781734240000,-464.32447921,0.00018673,2]
[425373999,1781734240000,-490.4103101,0.00018697,2]
[425373986,1781734240000,-65.07582883,0.00018673,2]
[425374022,1781734241000,-57.52345985,0.00018697,2]
[425374026,1781734241000,-157.37609506,0.000187,2]
[425374032,1781734241000,-2549.22,0.00018904,2]
[425374030,1781734241000,-500.0,0.00018904,2]
[425374024,1781734241000,-663.90597328,0.00018697,2]
[425374035,1781734241000,-720.21,0.00018904,2]
[425374034,1781734241000,-559.92075398,0.00018904,2]
[425374039,1781734241000,-24131.61069493,0.00019,2]
[425374037,1781734241000,-1011.92817261,0.00019,2]
[425374028,1781734241000,-1091.95097021,0.000187,2]
[425374308,1781734243000,-173.56942507,0.0001902,2]
[425374304,1781734243000,-713.37497274,0.0001902,2]
[425374314,1781734243000,-653.88041347,0.00019044,2]
[425374306,1781734243000,-445.16384818,0.0001902,2]
[425374300,1781734243000,-624.13807702,0.00019006,2]
[425374302,1781734243000,-632.17125666,0.0001902,2]
[425374295,1781734243000,-707.76687464,0.00019,2]
[425374298,1781734243000,-601.1443919,0.00019005,2]
[425374297,1781734243000,-2603.49,0.00019,2]
[425374311,1781734243000,-262.00510766,0.0001902,2]
[425374309,1781734243000,-619.09930561,0.0001902,2]
[425374313,1781734243000,-274.34451117,0.00019044,2]
[425374325,1781734243000,-443.56,0.00019178,2]
[425374327,1781734243000,-2549.22,0.00019178,2]
[425374337,1781734243000,-500.0,0.00019452,2]
[425374339,1781734243000,-687.34154015,0.00019452,2]
[425374316,1781734243000,-706.38884526,0.00019044,2]
[425374334,1781734243000,-882.98605658,0.00019391,2]
[425374332,1781734243000,-817.35051684,0.00019391,2]
[425374336,1781734243000,-1106.50995547,0.00019391,2]
[425374321,1781734243000,-167.0,0.00019123,3]
[425374323,1781734243000,-500.0,0.00019178,2]
[425374319,1781734243000,-885.20796437,0.00019044,2]
[425374318,1781734243000,-259.65101324,0.00019044,2]
[425374329,1781734243000,-720.21,0.00019178,2]
[425374331,1781734243000,-1043.5067419,0.000192,2]
[425374712,1781734246000,-326.8661211,0.0001984,2]
[425374697,1781734246000,-534.28843893,0.00019452,2]
[425374700,1781734246000,-1327.59002092,0.00019452,2]
[425374704,1781734246000,-152.0,0.00019609,7]
[425374702,1781734246000,-720.21,0.00019452,2]
[425374706,1781734246000,-500.0,0.00019726,2]
[425374718,1781734246000,-1059.58326789,0.00019912,2]
[425374725,1781734246000,-12605.47086534,0.0002,2]
[425374719,1781734246000,-1327.81194656,0.00019912,2]
[425374723,1781734246000,-789.94766895,0.0002,2]
[425374727,1781734246000,-3200.00000001,0.0002,2]
[425374721,1781734246000,-2000.0,0.0002,7]
[425374708,1781734246000,-2549.22,0.00019726,2]
[425374713,1781734246000,-326.8661211,0.0001984,2]
[425374710,1781734246000,-720.21,0.00019726,2]
[425374715,1781734246000,-980.8206202,0.00019912,2]
[425374737,1781734247000,-2249.99069582,0.0002,2]
[425377439,1781734954000,190.0,0.0001836,120]
[425377488,1781735432000,-81.77198854,0.00015443,2]
[425377486,1781735432000,-3700.448674,0.00015185,2]
[425377714,1781735438000,-500.0,0.00016712,2]
[425377710,1781735438000,-693.53,0.00016438,2]
[425377715,1781735438000,-500.0,0.00016712,2]
[425377709,1781735438000,-500.0,0.00016438,2]
[425377712,1781735438000,-511.68583464,0.00016711,2]
[425377711,1781735438000,-500.0,0.00016438,2]
[425377713,1781735438000,-500.0,0.00016712,2]
[425377707,1781735438000,-500.0,0.00016438,2]
[425377706,1781735438000,-1168.39,0.00016438,2]
[425377702,1781735438000,-500.0,0.00016438,2]
[425377703,1781735438000,-500.0,0.00016438,2]
[425377716,1781735438000,-500.0,0.00016712,2]
[425377700,1781735438000,-265.90390977,0.00016438,2]
[425377698,1781735438000,-160.0,0.00016437,2]
[425377701,1781735438000,-500.0,0.00016438,2]
[425377699,1781735438000,-160.0,0.00016437,2]
[425377697,1781735438000,-958.0,0.00016336,2]
[425377696,1781735438000,-1406.547,0.00016336,2]
[425377694,1781735438000,-657.08119486,0.00015443,2]
[425377695,1781735438000,-151.0,0.000161,2]
[425377704,1781735438000,-500.0,0.00016438,2]
[425377717,1781735438000,-500.0,0.00016712,2]
[425377705,1781735438000,-500.0,0.00016438,2]
[425377718,1781735438000,-1168.39,0.00016712,2]
[425377724,1781735438000,-1057.29587198,0.00016776,2]
[425377741,1781735438000,-500.0,0.00016785,2]
[425377740,1781735438000,-403.11118944,0.00016785,2]
[425377733,1781735438000,-500.0,0.00016785,2]
[425377739,1781735438000,-500.0,0.00016785,2]
[425377730,1781735438000,-500.0,0.00016785,2]
[425377734,1781735438000,-500.0,0.00016785,2]
[425377738,1781735438000,-500.0,0.00016785,2]
[425377735,1781735438000,-500.0,0.00016785,2]
[425377737,1781735438000,-500.0,0.00016785,2]
[425377736,1781735438000,-500.0,0.00016785,2]
[425377732,1781735438000,-500.0,0.00016785,2]
[425377708,1781735438000,-500.0,0.00016438,2]
[425377731,1781735438000,-500.0,0.00016785,2]
[425377728,1781735438000,-500.0,0.00016785,2]
[425377729,1781735438000,-500.0,0.00016785,2]
[425377727,1781735438000,-500.0,0.00016785,2]
[425377723,1781735438000,-500.0,0.00016712,2]
[425377725,1781735438000,-203.539092,0.00016782,2]
[425377722,1781735438000,-693.53,0.00016712,2]
[425377719,1781735438000,-500.0,0.00016712,2]
[425377726,1781735438000,-493.99615222,0.00016785,2]
[425377720,1781735438000,-500.0,0.00016712,2]
[425377721,1781735438000,-500.0,0.00016712,2]
[425377742,1781735439000,-500.0,0.00016785,2]
[425377744,1781735439000,-21816.38441708,0.00016786,2]
[425377743,1781735439000,-500.0,0.00016785,2]
[425377750,1781735439000,-19381.73735111,0.00016886,2]
[425377748,1781735439000,-720.99,0.00016876,3]
[425377751,1781735439000,-9517.94150334,0.00016886,2]
[425377747,1781735439000,-240.32,0.00016876,3]
[425377746,1781735439000,-480.65,0.00016876,3]
[425377749,1781735439000,-201.76155271,0.00016885,2]
[425377745,1781735439000,-961.3,0.00016876,3]
[425377773,1781735443000,-1412.16981293,0.00016886,2]
[425377775,1781735446000,-554.05762207,0.00016886,2]
[425377776,1781735446000,-303.0,0.00016886,2]
[425377777,1781735447000,-4693.72026097,0.00016886,2]
[425377785,1781735817000,361.12,0.00024657,120]
[425377955,1781736638000,-500.0,0.00016685,2]
[425377948,1781736638000,-500.0,0.00016685,2]
[425377950,1781736638000,-500.0,0.00016685,2]
[425377951,1781736638000,-500.0,0.00016685,2]
[425377953,1781736638000,-500.0,0.00016685,2]
[425377944,1781736638000,-841.15,0.00016676,3]
[425377942,1781736638000,-280.38,0.00016676,3]
[425377946,1781736638000,-500.0,0.00016685,2]
[425377940,1781736638000,-560.75,0.00016676,3]
[425377970,1781736638000,-527.76100393,0.00016685,2]
[425377935,1781736638000,-160.0,0.00016437,2]
[425377933,1781736638000,-328.0,0.00015755,2]
[425377931,1781736638000,-5000.0,0.00015441,13]
[425377938,1781736638000,-1492.88703214,0.00016611,2]
[425377937,1781736638000,-160.0,0.00016437,2]
[425377968,1781736638000,-500.0,0.00016685,2]
[425377972,1781736638000,-500.0,0.00016685,2]
[425377976,1781736638000,-500.0,0.00016685,2]
[425377957,1781736638000,-423.32487148,0.00016685,2]
[425377961,1781736638000,-500.0,0.00016685,2]
[425377959,1781736638000,-500.0,0.00016685,2]
[425377966,1781736638000,-500.0,0.00016685,2]
[425377963,1781736638000,-500.0,0.00016685,2]
[425377964,1781736638000,-433.67902105,0.00016685,2]
[425377978,1781736638000,-322.05927943,0.00016685,2]
[425377980,1781736638000,-500.0,0.00016685,2]
[425377981,1781736638000,-200.0,0.00016685,2]
[425377985,1781736638000,-618539.60137602,0.00016686,2]
[425377983,1781736638000,-500.0,0.00016685,2]
[425377988,1781736638000,-115751.94983801,0.00016686,2]
[425377974,1781736638000,-500.0,0.00016685,2]
[425378237,1781736641000,-1294.80407779,0.00016686,2]
[425378538,1781736643000,-1188.45814317,0.00016686,2]
[425378544,1781736643000,-4810.20075139,0.00016686,2]
[425378775,1781736646000,-12146.49035461,0.00016686,2]
[425378919,1781737841000,-500.0,0.00016485,2]
[425378916,1781737841000,-53.12246683,0.00016485,2]
[425378918,1781737841000,-500.0,0.00016485,2]
[425378917,1781737841000,-500.0,0.00016485,2]
[425378914,1781737841000,-445.36062157,0.00016485,2]
[425378915,1781737841000,-446.87753317,0.00016485,2]
[425378912,1781737841000,-203.5141163,0.00016485,2]
[425378908,1781737841000,-151.0,0.00016476,2]
[425378909,1781737841000,-151.0,0.00016476,2]
[425378913,1781737841000,-122.52147066,0.00016485,2]
[425378906,1781737841000,-151.0,0.00016476,2]
[425378911,1781737841000,-151.0,0.00016476,2]
[425378910,1781737841000,-151.0,0.00016476,2]
[425378907,1781737841000,-151.0,0.00016476,2]
[425378898,1781737841000,-841.15,0.00016476,3]
[425378903,1781737841000,-151.0,0.00016476,2]
[425378904,1781737841000,-151.0,0.00016476,2]
[425378901,1781737841000,-151.0,0.00016476,2]
[425378900,1781737841000,-151.0,0.00016476,2]
[425378902,1781737841000,-151.0,0.00016476,2]